bitfinex-derivatives/quotes_ETHF0:USTF0_20250224
["timestamp","ask_amount","ask_price","bid_price","bid_amount"]
[1740393595180,3.2078,2669.0,2668.5,40.8]
[1740393596786,3.2078,2669.0,2668.6,0.8192]
[1740393597189,3.21154736,2669.3,2668.6,3.9892]
[1740393597487,3.21154736,2669.3,2668.6,5.7356]
[1740393598388,3.2078,2669.0,2668.6,5.7356]
[1740393600291,3.2078,2669.0,2668.6,2.5656]
[1740393601887,3.2078,2669.0,2668.4,3.2078]
[1740393602079,3.2078,2668.6,2668.2,1.7464]
[1740393602281,6.3718,2668.6,2668.1,1.5745]
[1740393604092,4.0148,2668.9,2668.1,1.5745]
[1740393604289,4.0148,2668.9,2668.1,2.3811]
[1740393604490,3.2078,2668.9,2668.1,5.5441]
[1740393606289,3.2078,2668.9,2668.2,40.8]
[1740393606489,3.2078,2668.9,2668.1,1.5745]
[1740393607588,3.2078,2668.3,2668.0,0.00562103]
[1740393608093,2.2922,2668.2,2668.0,0.00562103]
[1740393608723,8.2922,2668.2,2667.3,3.2078]
[1740393608891,3.2078,2668.0,2667.3,3.2078]
[1740393609089,3.174,2667.9,2666.8,44.0078]
[1740393609293,3.2078,2667.4,2666.8,44.0078]
[1740393609995,3.21342103,2667.4,2666.8,3.21342103]
[1740393610486,1.4819,2667.3,2666.8,3.21342103]
[1740393611396,3.2078,2667.0,2666.2,3.2078]
[1740393611689,10.4689,2667.3,2665.5,3.2078]
[1740393611690,3.2078,2666.4,2665.5,3.2078]
[1740393611882,3.2078,2666.4,2665.6,0.7631]
[1740393612085,3.2078,2666.4,2665.6,1.5594]
[1740393612486,3.2078,2666.4,2665.7,0.00562103]
[1740393614291,6.3948,2666.7,2666.1,3.2078]
[1740393614491,6.3948,2666.7,2666.2,0.7936]
[1740393614895,1.4819,2667.3,2666.3,3.189]
[1740393614896,3.2078,2667.2,2666.3,3.189]
[1740393615090,3.2078,2667.2,2666.3,7.2026]
[1740393615301,3.2078,2667.2,2666.6,3.2078]
[1740393615493,3.2078,2667.2,2666.7,3.19]
[1740393615696,3.2078,2667.5,2666.7,3.19]
[1740393615897,3.2078,2667.5,2666.8,40.8]
[1740393616097,3.2078,2667.5,2666.9,0.7831]
[1740393616893,3.2078,2667.5,2667.0,3.2078]
[1740393617094,3.2078,2667.5,2666.9,3.9711]
[1740393617289,3.2078,2667.5,2666.9,0.7831]
[1740393617498,3.2078,2667.2,2666.8,1.7464]
[1740393617702,3.2078,2666.9,2666.8,1.7464]
[1740393617903,3.2078,2666.9,2666.4,0.7831]
[1740393619900,3.2078,2666.9,2666.5,3.2078]
[1740393621102,3.2078,2666.9,2666.6,1.7464]
[1740393624214,0.7819,2666.8,2666.6,1.7464]
[1740393624516,0.7819,2666.8,2666.0,0.7676]
[1740393624709,3.2078,2666.4,2666.0,0.7676]
[1740393626918,3.2078,2666.4,2665.8,3.2078]
[1740393627121,3.2078,2666.2,2665.7,0.00562103]
[1740393627314,3.2078,2665.9,2665.7,0.00562103]
[1740393628008,3.198,2665.8,2665.7,0.00562103]
[1740393630621,3.2078,2665.9,2665.7,0.00161448]
[1740393630825,0.79172103,2666.1,2665.7,0.00161448]
[1740393631719,0.00562103,2666.1,2665.7,0.00161448]
[1740393631927,0.00562103,2666.1,2665.8,40.8]
[1740393632427,0.00562103,2666.1,2665.7,0.00161448]
[1740393632724,0.00562103,2666.1,2665.9,3.2078]
[1740393632921,0.00562103,2666.1,2666.0,42.3693]
[1740393633121,6.4058,2666.9,2666.0,44.1157]
[1740393633432,3.2078,2666.9,2666.2,3.2078]
[1740393633629,3.206,2667.1,2666.3,0.7968]
[1740393633822,3.2078,2667.2,2666.5,3.2078]
[1740393634251,0.00562103,2667.1,2666.9,3.2078]
[1740393634421,0.00562103,2667.1,2666.9,6.4148]
[1740393634820,3.2078,2667.5,2666.9,6.72205777]
[1740393635020,4.7191,2668.3,2666.9,6.4148]
[1740393635324,3.09827854,2676.9,2667.6,3.2078]
[1740393635325,3.2078,2668.2,2667.6,3.2078]
[1740393635528,3.2078,2668.2,2667.6,6.4168]
[1740393635727,3.2078,2667.9,2667.2,27.2148]
[1740393635925,3.2078,2667.9,2667.2,64.807]
[1740393636123,0.00562103,2667.8,2667.3,0.00562103]
[1740393636359,3.2078,2667.6,2667.3,0.00562103]
[1740393637023,9.2078,2667.6,2667.3,0.00562103]
[1740393637329,9.2078,2667.6,2666.6,3.2078]
[1740393637529,3.2078,2667.2,2666.6,3.2078]
[1740393637732,4.0433,2667.1,2666.6,3.2078]
[1740393638421,0.7447,2667.0,2666.6,3.21342103]
[1740393639430,3.225,2667.0,2666.6,3.21342103]
[1740393640527,3.222,2667.1,2666.6,3.21342103]
[1740393640728,3.2078,2667.2,2666.6,3.21342103]
[1740393640926,3.2078,2667.2,2666.7,0.7556]
[1740393641330,3.2078,2666.8,2666.7,0.7556]
[1740393641530,3.2078,2666.8,2666.6,0.00562103]
[1740393643528,3.2078,2666.8,2666.6,1.75202103]
[1740393644334,3.2078,2667.2,2666.6,1.75202103]
[1740393644730,3.2078,2667.2,2666.7,0.778]
[1740393644931,3.2078,2667.5,2666.7,0.778]
[1740393645237,3.2078,2667.5,2666.8,0.7586]
[1740393645427,3.2078,2667.5,2666.8,42.3789]
[1740393646734,3.2078,2667.5,2666.9,3.216]
[1740393646939,0.00562103,2667.8,2667.4,3.2078]
[1740393647145,0.00562103,2667.8,2667.7,3.2078]
[1740393650151,0.00562103,2667.8,2667.5,1.5882]
[1740393653742,0.00562103,2667.8,2667.2,3.2078]
[1740393654142,3.96762103,2667.8,2667.2,3.2078]
[1740393655742,0.00562103,2667.8,2667.2,3.2078]
[1740393655944,0.00562103,2667.8,2667.0,1.5913]
[1740393656237,3.2078,2667.6,2667.0,1.5913]
[1740393657647,0.00562103,2667.8,2667.0,1.5913]
[1740393658548,0.00562103,2667.8,2667.3,3.2078]
[1740393658752,0.00562103,2667.8,2667.4,0.761]
[1740393659448,0.00562103,2667.8,2667.4,3.9688]
[1740393661546,3.2078,2668.2,2667.7,3.2078]
[1740393661885,3.2078,2668.2,2667.8,3.9901]
[1740393662058,3.2078,2668.2,2667.8,44.7901]
[1740393662546,0.7275,2669.1,2668.0,3.2078]
[1740393662753,0.00562103,2668.3,2668.1,0.6955]
[1740393662957,0.00562103,2668.3,2668.2,3.2078]
[1740393663149,0.00562103,2668.3,2668.2,6.4268]
[1740393663548,0.00562103,2668.3,2667.8,3.9779]
[1740393664153,0.00562103,2668.3,2667.8,45.4734]
[1740393664351,0.00562103,2668.3,2667.8,3.9779]
[1740393665158,3.2078,2668.1,2667.7,0.00562103]
[1740393665359,3.2078,2667.8,2666.5,3.2078]
[1740393665556,3.2078,2667.2,2666.2,3.9033]
[1740393665856,3.2078,2667.3,2666.5,3.2078]
[1740393666454,3.2078,2667.3,2666.6,1.4181]
[1740393666655,3.2078,2667.3,2666.6,1.42372103]
[1740393667156,3.228,2667.4,2666.6,1.42372103]
[1740393668457,3.2078,2667.6,2666.8,3.2078]
[1740393669157,3.2078,2667.6,2667.0,0.00291086]
[1740393669358,3.2078,2668.0,2667.3,3.2078]
[1740393669553,3.2078,2668.0,2667.4,0.7111]
[1740393669758,0.7038,2667.9,2667.1,3.231]
[1740393670157,3.9358,2667.9,2667.0,3.92181086]
[1740393670353,3.2078,2667.7,2667.0,3.21071086]
[1740393671859,6.1948,2667.7,2667.0,3.21071086]
[1740393672054,3.2078,2667.3,2667.0,0.00291086]
[1740393672260,5.4038,2667.2,2666.6,0.00562103]
[1740393672763,3.2078,2666.8,2666.6,0.00562103]
[1740393672961,3.232,2666.7,2666.6,0.00562103]
[1740393673561,3.2078,2666.8,2666.6,0.00562103]
[1740393673761,3.229,2666.8,2666.6,0.00562103]
[1740393673960,0.00562103,2666.9,2666.6,0.00562103]
[1740393675266,3.21342103,2666.9,2666.6,0.00562103]
[1740393675665,0.00562103,2666.9,2666.6,0.00562103]
[1740393675867,0.00562103,2666.9,2666.8,3.2078]
[1740393676161,0.00562103,2666.9,2666.7,0.6969]
[1740393676962,3.2078,2667.6,2666.8,3.9246]
[1740393677171,3.2078,2667.6,2667.2,3.2078]
[1740393677368,7.1185,2668.2,2667.2,3.2078]
[1740393677666,7.1185,2668.2,2667.2,4.9542]
[1740393678170,3.2078,2667.9,2667.2,1.7464]
[1740393678668,3.2078,2667.9,2667.2,4.9542]
[1740393678861,3.2078,2667.9,2667.2,1.7464]
[1740393679071,3.2078,2667.9,2667.2,4.9542]
[1740393680564,3.2078,2667.9,2667.2,3.2078]
[1740393680758,3.2078,2667.9,2667.5,3.2078]
[1740393680962,3.2078,2667.9,2667.6,1.4342]
[1740393681162,3.2078,2667.9,2667.6,2.1302]
[1740393681371,3.2078,2667.9,2667.7,40.8]
[1740393681864,0.00562103,2668.0,2667.7,40.8]
[1740393682063,0.00562103,2668.0,2667.6,2.1302]
[1740393686072,0.00562103,2668.0,2667.6,4.6472]
[1740393687773,0.00562103,2668.0,2667.7,3.215]
[1740393688177,0.00562103,2668.0,2667.8,3.214]
[1740393689979,0.00562103,2668.0,2667.8,6.4218]
[1740393694183,3.9141,2669.0,2667.8,6.4218]
[1740393694383,3.9141,2669.0,2668.0,3.2078]
[1740393694780,3.9366,2669.3,2668.4,3.2078]
[1740393694978,3.9366,2669.3,2668.5,3.8789]
[1740393695181,3.9366,2669.3,2668.5,4.6185]
[1740393695487,0.00562103,2669.2,2668.6,0.00562103]
[1740393696484,0.00562103,2669.2,2668.7,3.2078]
[1740393696882,0.00562103,2669.2,2669.0,3.2078]
[1740393700689,0.00562103,2669.2,2669.0,4.9542]
[1740393701984,0.7288,2669.7,2669.0,4.9542]
[1740393702289,3.2078,2669.9,2669.3,3.2078]
[1740393702509,3.2078,2669.9,2669.4,3.181]
[1740393702788,0.7063,2670.0,2669.4,3.181]
[1740393703184,0.7063,2670.0,2669.4,4.5865]
[1740393703489,0.71192103,2670.0,2669.4,4.5865]
[1740393704086,0.00562103,2670.0,2669.6,3.2078]
[1740393704590,0.00562103,2670.0,2669.7,3.2078]
[1740393706134,0.00562103,2670.0,2669.8,3.177]
[1740393706985,0.7502,2670.7,2669.8,4.9234]
[1740393707191,0.7502,2670.7,2670.1,3.2078]
[1740393707494,0.7502,2670.7,2670.2,3.174]
[1740393708089,0.00562103,2670.7,2670.2,3.17962103]
[1740393708282,0.00562103,2670.7,2670.2,4.57752103]
[1740393709692,0.00562103,2670.7,2670.3,3.171]
[1740393711094,0.00562103,2670.7,2670.5,3.2078]
[1740393711290,0.00562103,2670.7,2670.5,4.9542]
[1740393712994,0.7258,2671.3,2670.5,4.9542]
[1740393713189,0.7258,2671.3,2670.9,3.2078]
[1740393713493,0.7258,2671.3,2670.9,6.3698]
[1740393713795,3.2078,2671.4,2670.9,6.3698]
[1740393714096,3.20993288,2671.4,2671.0,1.4244]
[1740393714587,3.20993288,2671.4,2671.0,1.72948174]
[1740393714792,3.20993288,2671.4,2671.0,1.4244]
[1740393715795,3.2078,2671.1,2670.6,23.9748]
[1740393715991,3.2078,2670.8,2669.8,3.2078]
[1740393716293,3.2078,2670.5,2669.8,3.2078]
[1740393716494,1.379,2670.4,2669.8,3.51497129]
[1740393716697,1.379,2670.4,2669.8,3.2078]
[1740393716899,1.379,2670.4,2669.7,6.3788]
[1740393718098,0.6971,2670.4,2669.7,6.3788]
[1740393719698,3.2078,2670.8,2670.2,3.17062103]
[1740393720193,3.2078,2670.8,2670.2,3.85302103]
[1740393720498,3.9532,2671.1,2670.3,0.7244]
[1740393721593,3.9532,2671.1,2670.5,3.2078]
[1740393721800,3.9532,2671.1,2670.6,3.172]
[1740393723603,0.7454,2671.1,2670.6,3.172]
[1740393724124,0.7329,2671.3,2670.8,3.2078]
[1740393725196,3.2078,2671.5,2670.8,3.2078]
[1740393725396,3.2078,2671.5,2670.9,0.7368]
[1740393725701,3.2078,2671.5,2671.0,5.6059]
[1740393726101,3.2078,2671.5,2671.0,10.52446843]
[1740393726301,3.2078,2671.5,2671.0,52.02506843]
[1740393726501,3.2078,2671.5,2671.0,11.22506843]
[1740393726997,3.2078,2671.5,2671.0,52.02506843]
[1740393727199,1.4028,2672.1,2671.1,3.2078]
[1740393727600,1.4028,2672.1,2671.2,4.87090615]
[1740393727994,0.6811,2672.1,2671.2,10.87090615]
[1740393728200,3.2078,2672.3,2671.5,3.2078]
[1740393728506,3.2078,2672.3,2671.8,3.2078]
[1740393728703,3.2078,2672.3,2671.9,3.9076]
[1740393729106,3.9295,2672.9,2672.2,3.2078]
[1740393729407,3.9295,2672.9,2672.3,3.176]
[1740393730109,3.9295,2672.9,2672.3,4.9224]
[1740393730305,3.9295,2672.9,2672.3,5.6429]
[1740393733504,3.9295,2672.9,2672.3,4.9224]
[1740393733826,3.9295,2672.9,2672.4,0.7138]
[1740393734702,3.2078,2672.9,2672.4,0.7138]
[1740393738009,3.2078,2672.9,2672.5,3.163]
[1740393738604,3.2078,2672.9,2672.4,0.7138]
[1740393738809,3.2078,2672.9,2672.5,3.163]
[1740393741115,0.7519,2673.0,2672.5,6.3708]
[1740393742613,0.7519,2673.0,2672.5,47.1708]
[1740393743117,0.7519,2673.0,2672.6,0.7192]
[1740393743307,3.9062,2673.3,2672.6,0.7192]
[1740393745112,0.0057886,2672.8,2672.6,0.7192]
[1740393746624,0.0057886,2672.8,2672.7,3.15]
[1740393746817,0.0057886,2672.8,2672.5,3.2078]
[1740393747018,0.0057886,2672.8,2672.4,0.7138]
[1740393747218,0.0057886,2672.8,2672.2,3.2078]
[1740393747420,3.2078,2672.5,2671.8,0.00562103]
[1740393747611,1.4197,2672.4,2671.8,0.00562103]
[1740393747816,3.2078,2672.2,2671.8,0.00562103]
[1740393748016,0.7151,2672.1,2671.8,0.00562103]
[1740393750714,0.7151,2672.1,2671.8,3.21342103]
[1740393753724,0.7155,2672.4,2671.8,3.21342103]
[1740393755717,3.9532,2672.5,2672.1,3.2078]
[1740393756020,0.0057886,2672.8,2672.1,3.2078]
[1740393756222,0.0057886,2672.8,2672.2,1.4353]
[1740393756423,0.0057886,2672.8,2672.4,3.2078]
[1740393757918,0.0057886,2672.8,2672.3,6.3588]
[1740393759223,3.2078,2672.7,2672.1,3.15]
[1740393760026,0.7439,2672.6,2672.1,3.15]
[1740393760229,0.7439,2672.6,2672.2,3.2078]
[1740393761120,3.2078,2672.7,2672.2,3.2078]
[1740393761426,3.2078,2672.7,2672.2,4.9542]
[1740393761632,3.2078,2672.7,2672.3,0.6926]
[1740393763725,0.0057886,2672.8,2672.3,0.6926]
[1740393765025,0.0057886,2672.8,2672.5,3.2078]
[1740393765220,0.0057886,2672.8,2672.6,3.8529]
[1740393766323,3.9186,2673.4,2672.6,3.8529]
[1740393766523,3.9186,2673.4,2672.6,6.3476]
[1740393766728,3.9186,2673.4,2672.7,40.8]
[1740393766926,3.9186,2673.4,2672.6,6.3476]
[1740393767127,3.9186,2673.4,2672.8,3.2078]
[1740393767328,3.9186,2673.4,2672.9,0.7047]
[1740393767526,3.9186,2673.4,2673.0,3.15]
[1740393767850,3.9186,2673.4,2672.8,3.2078]
[1740393768032,0.7198,2673.3,2672.8,6.3578]
[1740393769029,0.7198,2673.3,2672.8,6.3568]
[1740393773034,0.7198,2673.3,2672.8,3.2078]
[1740393773243,1.403,2673.3,2672.8,3.2078]
[1740393774225,0.7198,2673.3,2672.8,3.2078]
[1740393774631,0.7198,2673.3,2672.9,0.7345]
[1740393774827,0.7198,2673.3,2672.9,1.4438]
[1740393775235,0.7198,2673.3,2672.8,3.2078]
[1740393779331,0.7198,2673.3,2672.5,3.2078]
[1740393782041,1.59110253,2673.3,2672.5,3.2078]
[1740393784156,0.7198,2673.3,2672.5,3.2078]
[1740393784759,3.2078,2672.6,2672.0,3.2078]
[1740393785051,3.2078,2672.3,2671.2,3.2078]
[1740393785258,5.3367,2672.5,2670.5,0.3744]
[1740393785259,3.2078,2671.9,2670.9,3.2078]
[1740393785553,6.3568,2671.9,2670.9,3.2078]
[1740393785755,3.2078,2671.4,2670.7,0.7497]
[1740393785957,6.3568,2671.4,2670.6,41.5482]
[1740393786253,3.2078,2671.1,2670.6,0.7482]
[1740393786449,3.2078,2671.4,2670.8,3.2078]
[1740393786647,0.00562103,2671.1,2670.8,6.3568]
[1740393787452,1.4347,2671.8,2670.8,6.3568]
[1740393787656,1.4347,2671.8,2671.1,3.2078]
[1740393787854,1.4347,2671.8,2671.2,0.7371]
[1740393788055,3.2078,2671.7,2671.3,0.7082]
[1740393789052,3.2078,2671.4,2670.8,6.3568]
[1740393789254,3.2078,2671.4,2670.8,7.0939]
[1740393790056,3.2078,2671.4,2670.8,3.9449]
[1740393791055,3.2078,2671.4,2670.8,3.2078]
[1740393793460,3.2078,2671.1,2670.6,0.00562103]
[1740393793762,3.2078,2670.8,2670.6,0.00562103]
[1740393794157,3.15,2670.7,2670.6,0.00562103]
[1740393794362,3.2078,2670.8,2670.6,0.00562103]
[1740393796266,3.2078,2671.1,2670.6,0.00562103]
[1740393796466,3.2078,2671.4,2670.8,3.2078]
[1740393796671,0.7449,2671.9,2670.9,5.2809]
[1740393797163,3.2078,2671.7,2670.9,5.2809]
[1740393798362,3.2078,2671.7,2671.1,3.2078]
[1740393799661,3.9053,2672.5,2671.4,3.2078]
[1740393799866,3.2078,2672.5,2671.8,3.2078]
[1740393800056,3.2078,2672.5,2671.9,4.6186]
[1740393801863,3.9297,2672.9,2672.1,3.2078]
[1740393802159,3.2078,2672.9,2672.1,3.2078]
[1740393802364,3.2078,2672.9,2672.2,0.70742103]
[1740393802564,3.2078,2672.9,2672.3,3.151]
[1740393805467,3.2078,2673.0,2672.4,3.2078]
[1740393805970,3.2078,2673.0,2672.4,7.97599132]
[1740393806163,3.2078,2673.0,2672.5,3.15]
[1740393806372,3.2078,2673.0,2672.6,0.7341]
[1740393806563,3.2078,2673.3,2672.7,3.9284]
[1740393808974,3.2078,2673.7,2672.7,3.9284]
[1740393809167,3.2078,2673.7,2673.0,3.2078]
[1740393809367,3.2078,2673.7,2673.0,6.3578]
[1740393809872,3.2078,2673.7,2673.1,0.6836]
[1740393812069,3.2078,2673.7,2673.3,3.2078]
[1740393812271,3.2078,2673.7,2673.4,0.6872]
[1740393812472,3.2078,2673.7,2673.4,3.8362]
[1740393814769,3.2078,2673.7,2673.3,6.3568]
[1740393815175,3.2078,2673.7,2673.3,3.2078]
[1740393815380,0.7395,2673.6,2673.3,3.2078]
[1740393815875,0.7226,2673.5,2673.3,3.2078]
[1740393817679,3.2078,2673.7,2673.3,3.2078]
[1740393818377,3.2078,2673.7,2673.4,1.43]
[1740393822782,3.2078,2673.7,2673.4,3.148]
[1740393822976,0.6917,2673.6,2673.4,3.148]
[1740393823184,1.4052,2673.6,2673.3,3.2078]
[1740393825886,1.4052,2673.6,2673.0,3.2078]
[1740393826183,1.4052,2673.6,2673.1,3.148]
[1740393826375,0.7377,2673.5,2673.1,3.148]
[1740393826619,3.8857,2673.5,2672.8,0.737]
[1740393826782,3.2078,2673.4,2672.8,0.737]
[1740393828781,3.2078,2673.4,2672.8,3.9448]
[1740393830182,3.2078,2673.4,2672.8,3.2078]
[1740393833187,1.4052,2673.6,2672.8,3.2078]
[1740393833389,1.4052,2673.6,2672.9,1.4108]
[1740393833590,1.4052,2673.6,2673.0,3.8822]
[1740393834093,1.4052,2673.6,2673.2,3.2078]
[1740393834485,1.4052,2673.6,2673.2,44.0078]
[1740393834887,1.4052,2673.6,2673.2,3.2078]
[1740393838996,1.4052,2673.6,2673.0,3.8822]
[1740393839892,1.4052,2673.6,2673.0,0.7342]
[1740393840489,1.4052,2673.6,2673.0,3.8812]
[1740393840795,1.4052,2673.6,2673.0,0.7342]
[1740393840995,3.2078,2673.4,2673.0,0.7342]
[1740393841889,3.2078,2673.4,2672.9,3.2078]
[1740393845199,4.613,2673.6,2672.9,3.2078]
[1740393849796,0.8736399,2673.5,2672.9,3.2078]
[1740393849998,4.0206399,2673.5,2672.9,3.2078]
[1740393850207,3.2078,2673.2,2672.3,1.443]
[1740393850497,0.6869,2673.1,2672.3,1.443]
[1740393850693,3.2078,2672.9,2672.3,1.443]
[1740393851203,3.2078,2672.9,2672.2,3.21342103]
[1740393852198,3.2078,2672.4,2672.2,0.00562103]
[1740393852399,2.1116,2672.3,2672.2,0.00562103]
[1740393852799,2.1116,2672.3,2671.8,3.2078]
[1740393854005,2.11722103,2672.3,2671.8,3.21342103]
[1740393855202,2.11722103,2672.3,2671.8,0.00562103]
[1740393855404,3.2078,2672.1,2671.8,0.00562103]
[1740393857309,2.44067913,2672.1,2671.9,3.147]
[1740393857501,0.00562103,2672.3,2671.9,3.147]
[1740393857502,0.00562103,2672.3,2672.0,3.9662]
[1740393857701,0.00562103,2672.3,2672.1,0.7273]
[1740393857902,0.7421,2673.0,2672.1,0.7273]
[1740393858209,3.2078,2673.3,2672.6,3.2078]
[1740393858406,3.2078,2673.3,2672.7,0.7584]
[1740393858609,3.2078,2673.3,2672.8,0.7473]
[1740393860707,3.2078,2673.3,2672.7,0.7584]
[1740393861409,3.2078,2673.3,2672.7,1.4779]
[1740393861802,3.2078,2673.3,2672.8,3.147]
[1740393862209,3.2078,2674.0,2673.0,3.2078]
[1740393862507,3.2078,2674.0,2673.3,3.2078]
[1740393862702,3.2078,2674.0,2673.4,3.147]
[1740393862703,1.4503,2673.9,2673.4,3.147]
[1740393862919,3.2078,2673.7,2673.2,0.0056101]
[1740393863110,3.2078,2673.4,2673.2,0.0056101]
[1740393863307,0.6999,2673.3,2673.2,0.0056101]
[1740393865400,6.6999,2673.3,2673.2,0.0056101]
[1740393866202,6.6999,2673.3,2672.7,3.2078]
[1740393866409,0.7329,2673.2,2672.7,3.2078]
[1740393866611,3.8395,2673.1,2672.7,3.2078]
[1740393868310,0.73847366,2673.2,2672.7,3.2078]
[1740393868311,3.88447366,2673.2,2672.7,3.2078]
[1740393868714,0.73847366,2673.2,2672.7,3.2078]
[1740393868919,0.73847366,2673.2,2672.7,3.9405]
[1740393869808,0.00557366,2673.2,2672.8,3.146]
[1740393870008,0.00557366,2673.2,2673.0,3.2078]
[1740393872216,3.2078,2674.1,2673.0,3.2078]
[1740393872430,3.2078,2674.1,2673.3,3.2078]
[1740393872606,3.2078,2674.1,2673.4,0.7304]
[1740393873217,3.2078,2674.1,2673.6,3.2078]
[1740393873420,3.2078,2674.1,2673.7,0.7306]
[1740393877717,3.2078,2674.1,2673.7,1.4397]
[1740393879613,3.2078,2674.1,2673.7,4.3937]
[1740393882014,3.2078,2674.1,2673.7,7.5387]
[1740393884824,3.2078,2674.1,2673.6,3.2078]
[1740393885011,3.2078,2674.1,2670.7,5.934]
[1740393885012,3.2078,2673.8,2672.7,3.2078]
[1740393885217,4.558,2674.0,2672.7,3.2078]
[1740393885218,3.2078,2673.4,2672.7,3.2078]
[1740393885424,5.2481,2673.3,2672.7,3.2078]
[1740393886125,4.558,2673.3,2672.7,3.2078]
[1740393887113,3.2078,2673.0,2672.6,0.0056101]
[1740393888447,8.4559,2673.3,2672.6,0.0056101]
[1740393888922,7.7658,2673.3,2672.6,0.0056101]
[1740393889319,7.7658,2673.3,2672.7,3.145]
[1740393889320,4.6208,2673.3,2672.7,3.145]
[1740393889528,1.413,2673.3,2672.8,1.4663]
[1740393890024,3.2078,2673.6,2672.8,1.4663]
[1740393891026,3.2078,2673.6,2672.9,40.8]
[1740393893120,3.2078,2673.6,2672.8,1.4663]
[1740393894527,3.2078,2673.6,2672.8,4.4203]
[1740393895919,3.2078,2673.3,2672.8,4.4203]
[1740393897228,3.2078,2673.3,2672.8,7.5653]
[1740393897417,3.2078,2673.3,2672.8,3.6826]
[1740393900428,3.2078,2673.3,2672.8,0.7286]
[1740393900724,3.2078,2673.3,2672.6,6.3584101]
[1740393901330,3.2078,2673.3,2672.7,0.7388]
[1740393902126,3.2078,2673.0,2672.6,0.0056101]
[1740393902532,1.4741,2673.3,2672.7,3.2078]
[1740393902729,1.4741,2673.3,2672.8,0.7388]
[1740393904033,3.2078,2673.1,2672.8,0.7388]
[1740393904533,3.2078,2673.1,2672.6,3.1496101]
[1740393904836,3.2078,2673.1,2672.6,0.0056101]
[1740393910326,0.7248,2673.3,2672.7,3.2078]
[1740393910531,3.2078,2673.4,2672.8,0.753]
[1740393910723,3.2078,2673.4,2672.9,43.944]
[1740393910931,3.9045,2673.7,2673.0,0.706]
[1740393911132,3.9045,2673.7,2673.0,1.4421]
[1740393911526,3.2078,2673.4,2673.0,1.4421]
[1740393912329,3.2078,2673.4,2672.6,0.0056101]
[1740393912524,3.2078,2673.1,2672.6,0.0056101]
[1740393913334,0.7151,2673.0,2672.6,0.0056101]
[1740393913833,0.7593,2672.9,2672.6,0.0056101]
[1740393916438,3.2078,2672.8,2672.6,0.0056101]
[1740393921839,3.2078,2672.8,2672.6,0.00167349]
[1740393923238,3.2078,2672.8,2672.0,3.2078]
[1740393923439,3.2078,2672.5,2671.7,3.2078]
[1740393923751,5.2591,2672.4,2671.7,3.2078]
[1740393924537,5.2591,2672.4,2671.8,0.0056101]
[1740393925846,3.2078,2672.2,2671.8,0.0056101]
[1740393927146,0.6917,2672.4,2671.9,3.2078]
[1740393927346,3.2078,2672.5,2672.0,1.4235]
[1740393927748,0.7413,2672.4,2672.0,1.4235]
[1740393927945,0.7413,2672.4,2671.8,3.1496101]
[1740393928149,0.7003,2672.3,2671.8,3.1496101]
[1740393929956,3.2078,2672.2,2671.8,0.0056101]
[1740393931651,3.8443,2672.3,2671.8,0.0056101]
[1740393931652,3.2078,2671.9,2671.8,0.0056101]
[1740393932857,6.3518,2671.9,2671.8,0.0056101]
[1740393933061,6.3518,2671.9,2671.2,0.692]
[1740393933357,3.2078,2671.6,2671.2,0.692]
[1740393934454,0.7216,2671.8,2671.3,3.2078]
[1740393934653,6.3518,2672.3,2671.3,3.2078]
[1740393934856,0.6925,2672.2,2671.3,3.2078]
[1740393935057,1.4308,2672.2,2671.3,3.2078]
[1740393935452,1.4308,2672.2,2671.3,6.1618]
[1740393935653,3.2078,2672.6,2671.8,3.2078]
[1740393935861,3.2078,2672.6,2671.9,8.2336]
[1740393936262,3.2078,2672.6,2672.1,3.2078]
[1740393936957,3.2078,2672.6,2671.9,8.2336]
[1740393937157,3.2078,2672.6,2672.1,3.2078]
[1740393938590,0.00393661,2673.0,2672.4,3.2078]
[1740393938763,3.9227,2673.4,2672.8,3.2078]
[1740393939064,3.2078,2673.7,2672.9,6.098]
[1740393939262,3.2078,2673.7,2672.9,3.144]
[1740393939869,0.0056101,2673.6,2673.0,0.0056101]
[1740393940267,0.0056101,2673.6,2673.1,3.144]
[1740393940698,0.0056101,2673.6,2673.0,0.0056101]
[1740393943179,0.7149,2673.9,2673.5,3.2078]
[1740393943477,3.2078,2674.1,2673.6,1.4965]
[1740393943780,0.6999,2674.0,2673.6,1.4965]
[1740393945179,3.20947349,2674.1,2673.6,1.4965]
[1740393946975,0.00167349,2674.1,2673.7,3.2078]
[1740393947286,3.2078,2674.4,2673.8,3.143]
[1740393949776,2.50656811,2674.4,2673.8,3.143]
[1740393950481,3.9601,2674.7,2674.0,3.2078]
[1740393950882,3.9601,2674.7,2674.1,3.142]
[1740393952484,3.9601,2674.7,2674.1,3.8773]
[1740393953173,3.9601,2674.7,2674.0,6.1618]
[1740393955187,3.9601,2674.7,2674.1,0.7265]
[1740393956186,3.2078,2674.7,2674.1,0.7265]
[1740393956381,3.2078,2674.7,2674.2,0.7313]
[1740393956587,3.2078,2675.0,2674.3,3.2078]
[1740393956788,3.2078,2675.0,2674.4,3.141]
[1740393957092,3.2078,2675.0,2674.4,8.32492561]
[1740393957284,17.08948676,2675.2,2674.8,3.2078]
[1740393957485,17.08948676,2675.2,2674.9,1.431]
[1740393959989,11.83578389,2675.2,2675.1,3.2078]
[1740393960892,3.2078,2675.7,2675.1,3.2078]
[1740393961088,3.2078,2675.7,2675.2,3.141]
[1740393961694,3.2078,2675.7,2675.1,3.2078]
[1740393961987,6.3488,2675.7,2675.1,3.2078]
[1740393962389,3.2078,2675.4,2674.6,20.734]